fUST/lending_fUST_20241126
["ID","MTS","AMOUNT","RATE_DAILY","PERIOD"]
[343411286,1732620637612,-500.0,0.00024999,2]
[343411287,1732620637622,-500.0,0.00024999,2]
[343411288,1732620637631,-500.0,0.00024999,2]
[343411289,1732620637640,-500.0,0.00024999,2]
[343411290,1732620637650,-500.0,0.00024999,2]
[343411292,1732620637659,-500.0,0.00024999,2]
[343411293,1732620637668,-500.0,0.00024999,2]
[343411294,1732620637677,-500.0,0.00024999,2]
[343411295,1732620637687,-500.0,0.00024999,2]
[343411296,1732620637696,-377.95483019,0.00024999,2]
[343411297,1732620637706,-500.0,0.00024999,2]
[343411299,1732620637715,-500.0,0.00024999,2]
[343411301,1732620637726,-500.0,0.00024999,2]
[343411303,1732620637735,-500.0,0.00024999,2]
[343411304,1732620637744,-500.0,0.00024999,2]
[343411305,1732620637753,-500.0,0.00024999,2]
[343411306,1732620637762,-500.0,0.00024999,2]
[343411307,1732620637775,-500.0,0.00024999,2]
[343411308,1732620637786,-500.0,0.00024999,2]
[343411309,1732620637796,-500.0,0.00024999,2]
[343411310,1732620637805,-500.0,0.00024999,2]
[343411311,1732620637814,-500.0,0.00024999,2]
[343411312,1732620637824,-500.0,0.00024999,2]
[343411313,1732620637833,-500.0,0.00024999,2]
[343411314,1732620637842,-500.0,0.00024999,2]
[343411315,1732620637852,-500.0,0.00024999,2]
[343411316,1732620637861,-500.0,0.00024999,2]
[343411317,1732620637870,-500.0,0.00024999,2]
[343411318,1732620637879,-500.0,0.00024999,2]
[343411319,1732620637889,-500.0,0.00024999,2]
[343411320,1732620637898,-500.0,0.00024999,2]
[343411321,1732620637908,-500.0,0.00024999,2]
[343411322,1732620637917,-500.0,0.00024999,2]
[343411323,1732620637926,-500.0,0.00024999,2]
[343411324,1732620637936,-500.0,0.00024999,2]
[343411325,1732620637946,-500.0,0.00024999,2]
[343411326,1732620637955,-500.0,0.00024999,2]
[343411327,1732620637964,-500.0,0.00024999,2]
[343411328,1732620637974,-500.0,0.00024999,2]
[343411329,1732620637983,-500.0,0.00024999,2]
[343411331,1732620637993,-500.0,0.00024999,2]
[343411332,1732620638002,-500.0,0.00024999,2]
[343411333,1732620638012,-500.0,0.00024999,2]
[343411334,1732620638026,-500.0,0.00024999,2]
[343411336,1732620638035,-500.0,0.00024999,2]
[343411338,1732620638046,-500.0,0.00024999,2]
[343411340,1732620638056,-500.0,0.00024999,2]
[343411342,1732620638066,-500.0,0.00024999,2]
[343411344,1732620638075,-500.0,0.00024999,2]
[343411346,1732620638085,-500.0,0.00024999,2]
[343411348,1732620638094,-500.0,0.00024999,2]
[343411350,1732620638103,-500.0,0.00024999,2]
[343411352,1732620638113,-500.0,0.00024999,2]
[343411354,1732620638122,-372.85206139,0.00024999,2]
[343411356,1732620638132,-500.0,0.00024999,2]
[343411358,1732620638142,-500.0,0.00024999,2]
[343411360,1732620638152,-500.0,0.00024999,2]
[343411362,1732620638162,-500.0,0.00024999,2]
[343411364,1732620638171,-500.0,0.00024999,2]
[343411366,1732620638182,-500.0,0.00024999,2]
[343411368,1732620638195,-500.0,0.00024999,2]
[343411370,1732620638204,-500.0,0.00024999,2]
[343411372,1732620638214,-500.0,0.00024999,2]
[343411374,1732620638224,-500.0,0.00024999,2]
[343411376,1732620638233,-500.0,0.00024999,2]
[343411378,1732620638243,-500.0,0.00024999,2]
[343411380,1732620638252,-500.0,0.00024999,2]
[343411382,1732620638262,-500.0,0.00024999,2]
[343411384,1732620638278,-500.0,0.00024999,2]
[343411386,1732620638287,-500.0,0.00024999,2]
[343411388,1732620638297,-500.0,0.00024999,2]
[343411390,1732620638306,-500.0,0.00024999,2]
[343411392,1732620638321,-500.0,0.00024999,2]
[343411394,1732620638331,-400.0,0.00024999,2]
[343411396,1732620638340,-500.0,0.00024999,2]
[343411398,1732620638350,-500.0,0.00024999,2]
[343411400,1732620638360,-500.0,0.00024999,2]
[343411402,1732620638370,-500.0,0.00024999,2]
[343411404,1732620638380,-500.0,0.00024999,2]
[343411406,1732620638390,-500.0,0.00024999,2]
[343411408,1732620638400,-500.0,0.00024999,2]
[343411410,1732620638410,-500.0,0.00024999,2]
[343411412,1732620638419,-250.0,0.00024999,2]
[343411414,1732620638429,-149023.66952063,0.00025,7]
[343411416,1732620638442,-391.69486179,0.00025,7]
[343411418,1732620638454,-190837.92467806,0.00025,7]
[343411420,1732620638464,-2589.7567915,0.00025,2]
[343411423,1732620638473,-1042.27896888,0.00025,2]
[343411425,1732620638483,-315795.37479156,0.00025,2]
[343411427,1732620638496,-7806.81616638,0.00025,2]
[343411429,1732620638507,-1049.65850792,0.00025,2]
[343411444,1732620638642,-42000.089831,0.00025,2]
[343411456,1732620638752,-9749.52513967,0.00025,2]
[343411458,1732620638764,-154330.22542491,0.00025,2]
[343411461,1732620638783,-925.77,0.00025,2]
[343411576,1732620640149,-920.45,0.00025,2]
[343411578,1732620640161,-18518.62689303,0.00025,2]
[343411581,1732620640172,-4613.53845527,0.00025,2]
[343411929,1732620643297,-1516.54,0.0002499,10]
[343411931,1732620643306,-125340.24313045,0.00025,2]
[343411934,1732620643318,-39155.14635989,0.00025,2]
[343411941,1732620643380,-10529.84225495,0.00025,2]
[343411943,1732620643391,-1541.88685667,0.00025,2]
[343411945,1732620643457,-899.999993,0.00025,2]
[343411946,1732620643469,-3805.95,0.00025,2]
[343411947,1732620643480,-3973.4799998,0.00025,2]
[343411948,1732620643532,-5175.49451258,0.00025,2]
[343411949,1732620643542,-3694.50549591,0.00025,2]
[343412213,1732620646033,-9224.0,0.00025,2]
[343412215,1732620646045,-3300.0,0.00025,2]
[343412220,1732620646093,-40830.89050248,0.00025,2]
[343412222,1732620646103,-165.78257685,0.00025,2]
[343412224,1732620646113,-203.78368477,0.00025,2]
[343412226,1732620646123,-510.80716236,0.00025,2]
[343412228,1732620646133,-10364.0,0.00025,2]
[343412230,1732620646142,-347.4268865,0.00025,2]
[343412232,1732620646152,-2941.06179734,0.00025,7]
[343412234,1732620646161,-829.54487437,0.00025,2]
[343412236,1732620646170,-500.0,0.00025073,2]
[343412238,1732620646181,-236.14,0.00025082,2]
[343412240,1732620646190,-130525.54227652,0.0002509,2]
[343412242,1732620646202,-3904.67168568,0.0002509,2]
[343412244,1732620646214,-8588.07975056,0.0002509,2]
[343412246,1732620646224,-420.0,0.00025411,2]
[343412248,1732620646234,-420.0,0.00025545,2]
[343412250,1732620646243,-1000.0,0.00025621,2]
[343412252,1732620646253,-73189.15207849,0.00025947,2]
[343412254,1732620646262,-500.0,0.00025973,2]
[343412256,1732620646271,-511.20504605,0.00025973,2]
[343412258,1732620646281,-258.02628593,0.00025973,2]
[343412260,1732620646292,-607.23511423,0.00025973,2]
[343412262,1732620646303,-200.54746631,0.00025973,2]
[343412264,1732620646312,-500.0,0.00025973,2]
[343412266,1732620646325,-48592.30486945,0.00026,2]
[343412268,1732620646335,-529.51026218,0.00026,2]
[343412270,1732620646345,-4823.39067178,0.00026,30]
[343412272,1732620646355,-3537.87186748,0.00026,3]
[343412274,1732620646364,-151.0,0.000261,17]
[343412276,1732620646374,-340.5020128,0.0002626,2]
[343412278,1732620646383,-151.0,0.000263,17]
[343412280,1732620646392,-156809.51053492,0.00026336,2]
[343423204,1732620875803,167.311491,0.00013973,2]
[343423205,1732621038836,570.29849161,0.00025999,60]
[343423280,1732621633261,168.476525,0.00013973,2]
[343423283,1732621637130,-312.79067075,0.00022131,2]
[343423284,1732621637156,-153.54672734,0.00022131,2]
[343423285,1732621637184,-195.08598739,0.00022231,2]
[343423286,1732621637209,-250.0,0.00022329,2]
[343423287,1732621637233,-540.850151,0.00022384,2]
[343423288,1732621637257,-164.556448,0.0002317,2]
[343423289,1732621637281,-300.0,0.0002338,2]
[343423290,1732621637306,-300.0,0.0002338,2]
[343423292,1732621637329,-7874.27282325,0.0002338,2]
[343423293,1732621650187,-151.89163046,0.00023333,2]
[343423294,1732621650213,-4042.12312167,0.0002338,2]
[343423320,1732621832369,-3069.5704113,0.00023142,2]
[343423321,1732621832379,-2233.4460663,0.00023162,2]
[343423322,1732621832388,-300.0,0.00023359,2]
[343423323,1732621832398,-300.0,0.00023359,2]
[343423324,1732621832408,-2316.0,0.00023359,2]
[343423325,1732621832417,-9840.7896281,0.00023361,2]
[343423326,1732621832427,-1458.38790134,0.00023382,2]
[343423327,1732621832436,-24900.0,0.00023383,2]
[343423328,1732621832445,-522.761587,0.00023389,2]
[343423329,1732621832455,-174.0,0.00024,2]
[343423330,1732621832465,-522.761587,0.00024074,2]
[343423331,1732621832474,-306.274,0.00024319,6]
[343423333,1732621832484,-174.0,0.00024439,2]
[343423335,1732621832493,-522.761587,0.00024759,2]
[343423337,1732621832503,-505.43182463,0.000248,2]
[343423338,1732621832512,-500.99511087,0.00024873,2]
[343423339,1732621832521,-500.0,0.00024873,2]
[343423340,1732621832531,-500.0,0.00024873,2]
[343423341,1732621832540,-500.0,0.00024873,2]
[343423342,1732621832549,-379.26,0.0002489,3]
[343423343,1732621832561,-758.52,0.0002489,3]
[343423344,1732621832570,-660.82,0.0002489,10]
[343423345,1732621832580,-1153.64,0.0002489,10]
[343423346,1732621832589,-286.73371078,0.00024899,2]
[343423347,1732621832598,-500.0,0.00024899,2]
[343423348,1732621832607,-500.0,0.00024899,2]
[343423349,1732621832617,-500.0,0.00024899,2]
[343423350,1732621832626,-500.0,0.00024899,2]
[343423351,1732621832635,-199.52806969,0.00024899,2]
[343423352,1732621832645,-500.0,0.00024899,2]
[343423353,1732621832654,-500.0,0.00024899,2]
[343423354,1732621832663,-500.0,0.00024899,2]
[343423355,1732621832672,-500.0,0.00024899,2]
[343423356,1732621832682,-500.0,0.00024899,2]
[343423357,1732621832691,-500.0,0.00024899,2]
[343423358,1732621832703,-188.53519001,0.00024899,2]
[343423359,1732621832712,-500.0,0.00024899,2]
[343423360,1732621832722,-500.0,0.00024899,2]
[343423361,1732621832731,-500.0,0.00024899,2]
[343423362,1732621832740,-437.28520614,0.00024899,2]
[343423363,1732621832751,-500.0,0.00024899,2]
[343423364,1732621832760,-500.0,0.00024899,2]
[343423365,1732621832769,-500.0,0.00024899,2]
[343423366,1732621832778,-500.0,0.00024899,2]
[343423367,1732621832788,-500.0,0.00024899,2]
[343423368,1732621832797,-102538.49811978,0.000249,2]
[343423369,1732621832816,-657.2,0.000249,2]
[343423371,1732621832827,-2299.12943089,0.000249,2]
[343423373,1732621832839,-116505.17244933,0.000249,2]
[343423375,1732621832848,-420.0,0.00025348,2]
[343423376,1732621832857,-174.0,0.00025373,2]
[343423379,1732621832867,-151.0,0.000254,17]
[343423381,1732621832876,-151.0,0.000254,20]
[343423383,1732621832886,-283.32862556,0.00025421,2]
[343423385,1732621832895,-420.0,0.00025695,2]
[343423386,1732621832904,-151.0,0.000258,18]
[343423388,1732621832914,-151.0,0.000259,13]
[343423390,1732621832923,-1065.0,0.00026234,2]
[343423392,1732621832932,-758.52,0.0002626,3]
[343423394,1732621832942,-379.26,0.0002626,3]
[343423396,1732621832951,-151.0,0.000263,14]
[343423398,1732621832961,-151.0,0.000263,17]
[343423400,1732621832970,-180.0,0.00026642,2]
[343423402,1732621832980,-151.0,0.000268,19]
[343423405,1732621832990,-151.0,0.000268,12]
[343423407,1732621832999,-63156.97,0.00027,2]
[343423409,1732621833008,-2501.58,0.00027,2]
[343423411,1732621833018,-157.0,0.00027,2]
[343423413,1732621833027,-151.0,0.000273,20]
[343423415,1732621833036,-151.0,0.000273,15]
[343423417,1732621833046,-519.03015484,0.00027397,2]
[343423418,1732621833055,-572.00804173,0.00027397,2]
[343423420,1732621833066,-500.0,0.00027397,2]
[343423422,1732621833076,-150.0,0.00027402,2]
[343423424,1732621833086,-531.0,0.00027402,2]
[343423426,1732621833096,-1242.718,0.00027402,2]
[343423428,1732621833106,-2381.0,0.00027402,2]
[343423430,1732621833115,-587.0,0.00027507,2]
[343423432,1732621833125,-151.0,0.000278,14]
[343423434,1732621833134,-151.0,0.000278,18]
[343423436,1732621833143,-500.0,0.00027999,2]
[343423438,1732621833152,-319.43663117,0.00027999,2]
[343423440,1732621833162,-295.90813506,0.00027999,2]
[343423442,1732621833171,-322.60330145,0.00027999,2]
[343423443,1732621833181,-432.09096951,0.00027999,2]
[343423444,1732621833190,-6289.16773644,0.00028,2]
[343423446,1732621833199,-6388.41985868,0.00028,7]
[343423448,1732621833208,-2000.0,0.00028,7]
[343423450,1732621833220,-439.4653828,0.00028055,30]
[343423452,1732621833230,-151.0,0.000282,18]
[343423454,1732621833239,-151.0,0.000282,20]
[343423456,1732621833249,-587.0,0.00028264,2]
[343423458,1732621833259,-174.0,0.00028418,2]
[343423460,1732621833268,-272.007924,0.000286,2]
[343423462,1732621833278,-307.38,0.000286,31]
[343423464,1732621833287,-307.38,0.000286,31]
[343423466,1732621833298,-307.38,0.000286,31]
[343423468,1732621833310,-307.38,0.000286,31]
[343423470,1732621833320,-307.38,0.000286,31]
[343423472,1732621833330,-307.38,0.000286,31]
[343423474,1732621833340,-307.38,0.000286,31]
[343423476,1732621833350,-307.38,0.000286,31]
[343423477,1732621833359,-307.38,0.000286,31]
[343423479,1732621833369,-307.38,0.000286,31]
[343423481,1732621833378,-307.38,0.000286,31]
[343423483,1732621833388,-307.38,0.000286,31]
[343423485,1732621833399,-151.0,0.000287,12]
[343423487,1732621833410,-151.0,0.000287,13]
[343423489,1732621833419,-500.0,0.00028767,4]
[343423491,1732621833429,-4166.39307353,0.00028852,2]
[343423493,1732621833439,-2081.51413946,0.00028876,10]
[343423495,1732621833449,-425.4344107,0.00028877,30]
[343423497,1732621833459,-3040.90671198,0.00028899,2]
[343423499,1732621833468,-52564.94326788,0.00029,7]
[343423501,1732621833478,-151.0,0.000292,16]
[343423503,1732621833488,-151.0,0.000292,19]
[343423505,1732621833497,-308.03805879,0.00029215,2]
[343423508,1732621833507,-306.45181152,0.00029215,2]
[343423509,1732621833516,-666.0,0.00029215,2]
[343423511,1732621833525,-306.45181145,0.00029253,2]
[343423513,1732621833535,-306.45181145,0.00029291,2]
[343423515,1732621833546,-249.48981,0.000293,14]
[343423517,1732621833555,-308.03805878,0.00029301,2]
[343423519,1732621833567,-151.0,0.00029315,7]
[343423521,1732621833577,-283.32269848,0.00029315,2]
[343423522,1732621833587,-550.80689417,0.00029315,2]
[343423523,1732621833597,-500.0,0.00029315,2]
[343423524,1732621833606,-158.22605267,0.00029315,2]
[343423526,1732621833616,-503.48546242,0.00029315,2]
[343423528,1732621833626,-599.48880141,0.00029315,2]
[343423530,1732621833635,-400.06688696,0.00029315,2]
[343423601,1732621839628,-2019.7745524,0.00022508,2]
[343423603,1732621839639,-500.0,0.00024873,2]
[343423605,1732621839648,-961.37,0.0002489,10]
[343423607,1732621839657,-1000.0,0.00025421,2]
[343423610,1732621839666,-1500.0,0.00026422,2]
[343423612,1732621839676,-176.486,0.00027402,2]
[343423614,1732621839686,-2000.0,0.0002772,5]
[343423616,1732621839695,-99.93311304,0.00029315,2]
[343423618,1732621839708,-500.0,0.00029315,2]
[343423620,1732621839718,-500.0,0.00029315,2]
[343423622,1732621839728,-500.0,0.00029315,2]
[343423624,1732621839737,-503.1300308,0.00029315,2]
[343423626,1732621839746,-538.03550738,0.00029315,2]
[343423628,1732621839757,-500.0,0.00029315,2]
[343423630,1732621839766,-603.08843664,0.00029315,2]
[343423632,1732621839776,-500.0,0.00029315,2]
[343423634,1732621839786,-304.34553668,0.00029315,2]
[343423636,1732621839796,-350.5,0.00029315,2]
[343423638,1732621839806,-500.0,0.00029315,2]
[343423640,1732621839818,-500.0,0.00029315,2]
[343423642,1732621839827,-500.0,0.00029315,2]
[343423644,1732621839837,-500.0,0.00029315,2]
[343423646,1732621839846,-503.71674894,0.00029315,2]
[343423648,1732621839855,-500.0,0.00029315,2]
[343423650,1732621839865,-503.33941587,0.00029315,2]
[343423652,1732621839874,-500.0,0.00029315,2]
[343423654,1732621839884,-365.98970602,0.00029315,2]
[343423656,1732621839894,-500.0,0.00029315,2]
[343423658,1732621839904,-500.0,0.00029315,2]
[343423660,1732621839914,-500.0,0.00029315,2]
[343423662,1732621839923,-500.0,0.00029315,2]
[343423663,1732621839933,-500.0,0.00029315,2]
[343423665,1732621839943,-500.0,0.00029315,2]
[343423667,1732621839953,-500.0,0.00029315,2]
[343423669,1732621839963,-500.0,0.00029315,2]
[343423671,1732621839972,-500.0,0.00029315,2]
[343423673,1732621839982,-500.0,0.00029315,2]
[343423675,1732621839992,-500.0,0.00029315,2]
[343423677,1732621840001,-500.0,0.00029315,2]
[343423679,1732621840012,-500.0,0.00029315,2]
[343423681,1732621840022,-500.0,0.00029315,2]
[343423683,1732621840031,-500.0,0.00029315,2]
[343423685,1732621840041,-500.0,0.00029315,2]
[343423687,1732621840050,-500.0,0.00029315,2]
[343423689,1732621840059,-500.0,0.00029315,2]
[343423691,1732621840075,-559.50530274,0.00029315,2]
[343423693,1732621840084,-500.0,0.00029315,2]
[343423695,1732621840094,-192.67600682,0.00029315,2]
[343423697,1732621840103,-500.0,0.00029315,2]
[343423699,1732621840112,-500.0,0.00029315,2]
[343423701,1732621840121,-500.0,0.00029315,2]
[343423703,1732621840131,-500.97563408,0.00029315,2]
[343423705,1732621840140,-502.96914312,0.00029315,2]
[343423707,1732621840150,-500.0,0.00029315,2]
[343423709,1732621840160,-500.0,0.00029315,2]
[343423711,1732621840170,-500.0,0.00029315,2]
[343423713,1732621840179,-500.0,0.00029315,2]
[343423715,1732621840189,-500.0,0.00029315,2]
[343423717,1732621840198,-500.0,0.00029315,2]
[343423719,1732621840207,-500.0,0.00029315,2]
[343423721,1732621840220,-500.0,0.00029315,2]
[343423723,1732621840229,-500.0,0.00029315,2]
[343423725,1732621840239,-500.0,0.00029315,2]
[343423727,1732621840248,-500.0,0.00029315,2]
[343423729,1732621840257,-500.0,0.00029315,2]
[343423731,1732621840266,-501.88585025,0.00029315,2]
[343423733,1732621840276,-557.24995553,0.00029315,2]
[343423735,1732621840285,-500.0,0.00029315,2]
[343423736,1732621840295,-570.15,0.00029315,2]
[343423738,1732621840304,-504.04978429,0.00029315,2]
[343423740,1732621840318,-359.98569282,0.00029315,2]
[343423742,1732621840327,-500.0,0.00029315,2]
[343423744,1732621840337,-500.0,0.00029315,2]
[343423746,1732621840346,-500.0,0.00029315,2]
[343423748,1732621840356,-500.0,0.00029315,2]
[343423750,1732621840366,-500.0,0.00029315,2]
[343423752,1732621840376,-500.0,0.00029315,2]
[343423754,1732621840386,-505.50211861,0.00029315,2]
[343423756,1732621840396,-500.0,0.00029315,2]
[343423758,1732621840406,-500.0,0.00029315,2]
[343423760,1732621840415,-500.0,0.00029315,2]
[343423762,1732621840424,-500.0,0.00029315,2]
[343423764,1732621840433,-500.0,0.00029315,2]
[343423766,1732621840443,-500.0,0.00029315,2]
[343423768,1732621840453,-500.0,0.00029315,2]
[343423770,1732621840463,-643.8676419,0.00029315,2]
[343423772,1732621840472,-500.0,0.00029315,2]
[343423774,1732621840481,-500.0,0.00029315,2]
[343423776,1732621840491,-649.84975934,0.00029315,2]
[343423778,1732621840499,-500.0,0.00029315,2]
[343423780,1732621840509,-500.0,0.00029315,2]
[343423782,1732621840518,-500.0,0.00029315,2]
[343423784,1732621840528,-189.14385017,0.00029315,2]
[343423786,1732621840538,-500.0,0.00029315,2]
[343423788,1732621840548,-501.25209121,0.00029315,2]
[343423790,1732621840558,-500.0,0.00029315,2]
[343423792,1732621840576,-500.0,0.00029315,2]
[343423794,1732621840587,-599.07695397,0.00029315,2]
[343423796,1732621840596,-500.0,0.00029315,2]
[343423798,1732621840605,-546.51039559,0.00029315,2]
[343423800,1732621840615,-500.0,0.00029315,2]
[343423802,1732621840625,-500.0,0.00029315,2]
[343423804,1732621840634,-500.0,0.00029315,2]
[343423806,1732621840644,-500.0,0.00029315,2]
[343423808,1732621840653,-500.0,0.00029315,2]
[343423810,1732621840663,-500.0,0.00029315,2]
[343423812,1732621840672,-500.0,0.00029315,2]
[343423814,1732621840681,-636.63775166,0.00029315,2]
[343423816,1732621840693,-500.0,0.00029315,2]
[343423818,1732621840703,-500.0,0.00029315,2]
[343423820,1732621840712,-500.0,0.00029315,2]
[343423822,1732621840726,-578.33,0.00029315,2]
[343423824,1732621840735,-500.0,0.00029315,2]
[343423826,1732621840744,-500.0,0.00029315,2]
[343423828,1732621840754,-500.0,0.00029315,2]
[343423830,1732621840764,-238.9147553,0.00029315,2]
[343423832,1732621840773,-569.59462323,0.00029315,2]
[343423834,1732621840783,-504.8207905,0.00029315,2]
[343423836,1732621840792,-200.0,0.00029315,2]
[343423838,1732621840802,-500.0,0.00029315,2]
[343423840,1732621840817,-500.0,0.00029315,2]
[343423842,1732621840826,-500.0,0.00029315,2]
[343423844,1732621840835,-500.0,0.00029315,2]
[343423846,1732621840844,-500.0,0.00029315,2]
[343423848,1732621840853,-500.0,0.00029315,2]
[343423850,1732621840862,-500.0,0.00029315,2]
[343423852,1732621840871,-500.0,0.00029315,2]
[343423854,1732621840879,-500.0,0.00029315,2]
[343423856,1732621840889,-500.0,0.00029315,2]
[343423857,1732621840898,-500.0,0.00029315,2]
[343423859,1732621840907,-412.61,0.00029315,2]
[343423861,1732621840916,-500.0,0.00029315,2]
[343423863,1732621840925,-500.0,0.00029315,2]
[343423866,1732621840934,-482.27913764,0.00029315,2]
[343423867,1732621840943,-507.07301343,0.00029315,2]
[343423869,1732621840953,-500.0,0.00029315,2]
[343423871,1732621840963,-286.47515019,0.00029315,2]
[343423873,1732621840972,-500.0,0.00029315,2]
[343423875,1732621840981,-504.58305204,0.00029315,2]
[343423877,1732621840990,-506.40088923,0.00029315,2]
[343423879,1732621840999,-416.5087139,0.00029315,2]
[343423881,1732621841008,-501.67653148,0.00029315,2]
[343423883,1732621841018,-500.0,0.00029315,2]
[343423885,1732621841027,-500.0,0.00029315,2]
[343423887,1732621841036,-500.0,0.00029315,2]
[343423889,1732621841045,-500.0,0.00029315,2]
[343423891,1732621841055,-500.0,0.00029315,2]
[343423893,1732621841067,-436.7685091,0.00029315,2]
[343423895,1732621841076,-310.30029368,0.00029315,2]
[343423897,1732621841086,-504.55716376,0.00029315,2]
[343423899,1732621841096,-494.24768574,0.00029315,2]
[343423901,1732621841105,-500.84011006,0.00029315,2]
[343423903,1732621841115,-500.0,0.00029315,2]
[343423905,1732621841124,-500.0,0.00029315,2]
[343423907,1732621841133,-192.02030489,0.00029315,2]
[343423909,1732621841142,-500.0,0.00029315,2]
[343423911,1732621841150,-500.0,0.00029315,2]
[343423913,1732621841159,-500.0,0.00029315,2]
[343423915,1732621841168,-500.0,0.00029315,2]
[343423917,1732621841177,-500.0,0.00029315,2]
[343423919,1732621841185,-299.88058945,0.00029315,2]
[343423921,1732621841194,-507.11190617,0.00029315,2]
[343423923,1732621841203,-241.66569832,0.00029315,2]
[343423925,1732621841213,-500.0,0.00029315,2]
[343423927,1732621841222,-500.0,0.00029315,2]
[343423929,1732621841231,-500.0,0.00029315,2]
[343423931,1732621841240,-500.0,0.00029315,2]
[343423933,1732621841249,-500.0,0.00029315,2]
[343423935,1732621841258,-500.0,0.00029315,2]
[343423937,1732621841267,-500.0,0.00029315,2]
[343423939,1732621841277,-500.0,0.00029315,2]
[343423941,1732621841286,-500.0,0.00029315,2]
[343423943,1732621841295,-500.0,0.00029315,2]
[343423945,1732621841304,-500.0,0.00029315,2]
[343423959,1732621841435,-500.0,0.00029315,2]
[343423961,1732621841445,-500.0,0.00029315,2]
[343423963,1732621841455,-500.0,0.00029315,2]
[343423965,1732621841464,-500.0,0.00029315,2]
[343423967,1732621841473,-500.0,0.00029315,2]
[343423969,1732621841482,-500.0,0.00029315,2]
[343423971,1732621841491,-500.0,0.00029315,2]
[343423973,1732621841500,-500.0,0.00029315,2]
[343423975,1732621841509,-417.36928776,0.00029315,2]
[343423977,1732621841519,-500.0,0.00029315,2]
[343423979,1732621841528,-500.0,0.00029315,2]
[343423981,1732621841537,-500.0,0.00029315,2]
[343423983,1732621841547,-319.86,0.00029315,2]
[343423985,1732621841556,-500.0,0.00029315,2]
[343423987,1732621841571,-500.31302216,0.00029315,2]
[343423989,1732621841579,-500.0,0.00029315,2]
[343423991,1732621841588,-502.67179994,0.00029315,2]
[343423993,1732621841597,-505.742405,0.00029315,2]
[343423995,1732621841606,-500.0,0.00029315,2]
[343423997,1732621841616,-500.0,0.00029315,2]
[343423999,1732621841624,-500.0,0.00029315,2]
[343424001,1732621841634,-500.0,0.00029315,2]
[343424003,1732621841643,-500.0,0.00029315,2]
[343424005,1732621841652,-500.0,0.00029315,2]
[343424007,1732621841661,-500.0,0.00029315,2]
[343424009,1732621841670,-500.0,0.00029315,2]
[343424011,1732621841679,-500.0,0.00029315,2]
[343424013,1732621841688,-500.0,0.00029315,2]
[343424015,1732621841698,-460.09507861,0.00029315,2]
[343424017,1732621841714,-503.68766545,0.00029315,2]
[343424019,1732621841723,-500.0,0.00029315,2]
[343424021,1732621841732,-502.0135951,0.00029315,2]
[343424023,1732621841742,-500.0,0.00029315,2]
[343424025,1732621841752,-500.0,0.00029315,2]
[343424027,1732621841762,-500.0,0.00029315,2]
[343424029,1732621841771,-502.44671074,0.00029315,2]
[343424031,1732621841781,-500.0,0.00029315,2]
[343424033,1732621841791,-500.0,0.00029315,2]
[343424035,1732621841800,-500.0,0.00029315,2]
[343424037,1732621841809,-238.21489045,0.00029315,2]